bitfinex-derivatives/quotes_BTCF0:USTF0_20251030
["timestamp","ask_amount","ask_price","bid_price","bid_amount"]
[1761815649656,0.60920681,110480.0,110470.0,0.31089213]
[1761815650049,0.24840681,110480.0,110470.0,0.31089213]
[1761815650659,0.24940681,110480.0,110470.0,0.31189213]
[1761815651154,0.08705288,110480.0,110470.0,0.31189213]
[1761815651460,0.25040681,110480.0,110470.0,0.31189213]
[1761815651959,0.08805288,110480.0,110470.0,0.31189213]
[1761815652157,0.25040681,110480.0,110470.0,0.31189213]
[1761815654957,0.2722354,110480.0,110470.0,0.31189213]
[1761815655260,0.20039587,110480.0,110470.0,0.31189213]
[1761815656160,0.17612299,110480.0,110470.0,0.31189213]
[1761815656958,0.33847692,110480.0,110470.0,0.31189213]
[1761815659155,0.35129692,110480.0,110470.0,0.001]
[1761815659464,0.35129692,110480.0,110470.0,0.04631]
[1761815659465,0.21321587,110480.0,110470.0,0.04631]
[1761815659665,0.53792373,110480.0,110470.0,0.04631]
[1761815659964,0.93481587,110480.0,110470.0,0.04631]
[1761815660159,0.93481587,110480.0,110470.0,0.06004]
[1761815660462,1.0971698,110480.0,110470.0,0.06004]
[1761815660847,1.25952373,110480.0,110470.0,0.06004]
[1761815661252,1.25952373,110480.0,110470.0,0.04631]
[1761815664367,0.93481587,110480.0,110470.0,0.04631]
[1761815664566,1.24793587,110480.0,110470.0,0.04631]
[1761815664867,1.4102898,110480.0,110470.0,0.20866393]
[1761815665067,1.21184373,110480.0,110470.0,0.20866393]
[1761815665365,1.0494898,110480.0,110470.0,0.04631]
[1761815665761,0.7235498,110480.0,110470.0,0.22239393]
[1761815665962,1.0366298,110480.0,110470.0,0.22239393]
[1761815667267,1.0209698,110480.0,110470.0,0.22239393]
[1761815667468,1.0366298,110480.0,110470.0,0.22239393]
[1761815668551,0.87427587,110480.0,110470.0,0.22239393]
[1761815668757,1.0366298,110480.0,110470.0,0.22239393]
[1761815669466,0.56119587,110480.0,110470.0,0.22239393]
[1761815669658,0.7235498,110480.0,110470.0,0.22239393]
[1761815670063,0.20039587,110480.0,110470.0,0.22239393]
[1761815670457,0.56119587,110480.0,110470.0,0.22239393]
[1761815670658,0.7235498,110480.0,110470.0,0.22239393]
[1761815671463,0.56119587,110480.0,110470.0,0.22239393]
[1761815671665,0.7235498,110480.0,110470.0,0.22239393]
[1761815671964,0.7235498,110480.0,110470.0,0.06004]
[1761815672165,0.7235498,110480.0,110470.0,0.22239393]
[1761815672464,0.73164076,110480.0,110470.0,0.22239393]
[1761815673567,0.74446076,110480.0,110470.0,0.22239393]
[1761815673952,0.74446076,110480.0,110470.0,0.20866393]
[1761815674253,0.58210683,110480.0,110470.0,0.20866393]
[1761815674758,0.74446076,110480.0,110470.0,0.20866393]
[1761815675260,0.74446076,110480.0,110470.0,0.04631]
[1761815675862,0.90681469,110480.0,110470.0,0.02367]
[1761815676367,0.58210683,110480.0,110470.0,0.02367]
[1761815676557,0.58210683,110480.0,110470.0,1.54631]
[1761815676753,0.90681469,110480.0,110470.0,1.54631]
[1761815678768,0.74446076,110480.0,110470.0,1.54631]
[1761815679167,0.90681469,110480.0,110470.0,1.54631]
[1761815681467,0.74445673,110480.0,110470.0,1.54631]
[1761815682570,0.73636216,110480.0,110470.0,1.54631]
[1761815684067,0.57401226,110480.0,110470.0,1.54631]
[1761815684266,0.73636216,110480.0,110470.0,1.56004]
[1761815685571,0.73636216,110480.0,110470.0,1.54631]
[1761815689173,0.56119226,110480.0,110470.0,1.5592]
[1761815689364,0.87423226,110480.0,110470.0,1.5592]
[1761815690575,0.9065961,110480.0,110470.0,1.5592]
[1761815691564,0.88232683,110480.0,110470.0,1.5592]
[1761815692769,0.56928683,110480.0,110470.0,1.5592]
[1761815693075,0.88232683,110480.0,110470.0,1.5592]
[1761815696667,0.90663359,110480.0,110470.0,1.5592]
[1761815696868,0.56122975,110480.0,110470.0,1.5592]
[1761815697076,0.87426975,110480.0,110470.0,1.5592]
[1761815698376,0.90663359,110480.0,110470.0,1.5592]
[1761815698581,0.87426975,110480.0,110470.0,1.6497182]
[1761815698876,0.56122975,110480.0,110470.0,1.6497182]
[1761815699062,0.59359359,110480.0,110470.0,1.6497182]
[1761815701766,0.59359359,110480.0,110470.0,1.5592]
[1761815702074,0.56122975,110480.0,110470.0,1.5592]
[1761815704183,0.56122975,110480.0,110470.0,1.6497182]
[1761815704381,0.52248975,110480.0,110470.0,1.8120681]
[1761815704573,0.54409975,110480.0,110470.0,1.6497182]
[1761815704769,0.54409975,110480.0,110470.0,1.8120681]
[1761815705179,0.51979299,110480.0,110470.0,1.8120681]
[1761815706380,0.53545299,110480.0,110470.0,1.8120681]
[1761815706784,0.53545299,110480.0,110470.0,2.1250681]
[1761815707184,0.49818299,110480.0,110470.0,2.1250681]
[1761815707484,0.51979299,110480.0,110470.0,2.1250681]
[1761815709091,0.47514299,110480.0,110470.0,2.3650681]
[1761815709392,0.11434299,110480.0,110470.0,2.5958681]
[1761815710680,0.02382859,110480.0,110470.0,2.7758681]
[1761815710886,0.01600569,110480.0,110470.0,2.7785881]
[1761815711079,0.01600569,110480.0,110470.0,3.3785881]
[1761815711276,0.38510676,110500.0,110490.0,0.0905018]
[1761815711474,0.40076676,110500.0,110490.0,0.6200517]
[1761815711888,0.38510676,110500.0,110490.0,0.7400517]
[1761815712086,0.02430676,110500.0,110490.0,0.7400517]
[1761815712575,0.43086676,110510.0,110500.0,0.1485036]
[1761815712780,0.40076676,110510.0,110500.0,0.3108535]
[1761815712979,0.42380676,110510.0,110500.0,0.4308535]
[1761815713181,0.38510676,110510.0,110500.0,0.4308535]
[1761815713886,0.38510676,110510.0,110500.0,0.43979388]
[1761815714091,0.02430676,110510.0,110500.0,0.59979388]
[1761815714282,0.02430676,110510.0,110500.0,0.60251388]
[1761815714483,0.005,110510.0,110500.0,0.96431388]
[1761815715485,0.008,110510.0,110500.0,0.96431388]
[1761815716184,0.38510676,110520.0,110510.0,0.1465354]
[1761815716383,0.44509676,110520.0,110510.0,0.4594954]
[1761815716580,0.44509676,110520.0,110510.0,0.6218453]
[1761815717375,0.40076676,110520.0,110510.0,0.6218453]
[1761815717580,0.40076676,110520.0,110510.0,0.7318453]
[1761815717781,0.40076676,110520.0,110510.0,0.6218453]
[1761815717974,0.40076676,110520.0,110510.0,0.1475354]
[1761815717975,0.44609676,110520.0,110510.0,0.1475354]
[1761815718179,0.44609676,110520.0,110510.0,0.6228053]
[1761815718587,0.44709676,110520.0,110510.0,0.6228053]
[1761815718982,0.08629676,110520.0,110510.0,0.6228053]
[1761815719484,0.08629676,110520.0,110510.0,0.5323199]
[1761815719991,0.08629676,110520.0,110510.0,0.6228053]
[1761815720194,0.06199,110520.0,110510.0,0.6228053]
[1761815721995,0.03946,110520.0,110510.0,0.6228053]
[1761815722196,0.01766,110520.0,110510.0,0.6228053]
[1761815723596,0.01766,110520.0,110510.0,0.8212554]
[1761815723788,0.03932966,110520.0,110510.0,0.8212554]
[1761815723994,0.03932966,110520.0,110510.0,0.9836053]
[1761815724794,0.03932966,110520.0,110510.0,1.1236053]
[1761815725699,0.03932966,110520.0,110510.0,0.9836053]
[1761815726695,0.25844956,110520.0,110510.0,0.05705]
[1761815726894,0.61924956,110520.0,110510.0,0.0443]
[1761815727601,0.61924956,110520.0,110510.0,0.05819]
[1761815727903,0.45689966,110520.0,110510.0,0.05819]
[1761815728098,0.61924956,110520.0,110510.0,0.05819]
[1761815728901,0.45689966,110520.0,110510.0,0.05819]
[1761815729103,0.45689966,110520.0,110510.0,0.2205399]
[1761815729104,0.08315966,110520.0,110510.0,0.2205399]
[1761815729401,0.08315966,110520.0,110510.0,0.3110253]
[1761815730195,0.08315966,110520.0,110510.0,0.1486754]
[1761815730400,0.02366966,110520.0,110510.0,0.7918253]
[1761815731398,0.02366966,110520.0,110510.0,0.9518253]
[1761815731599,0.02366101,110520.0,110510.0,0.9518253]
[1761815732103,0.02366101,110520.0,110510.0,0.7818253]
[1761815732305,0.02366101,110520.0,110510.0,0.9318253]
[1761815732506,0.002,110520.0,110510.0,0.9318253]
[1761815734005,0.04583,110520.0,110510.0,0.5094754]
[1761815734797,0.06749684,110520.0,110510.0,0.4615154]
[1761815736405,0.60630674,110520.0,110510.0,0.37103]
[1761815736608,0.60630674,110520.0,110510.0,0.05819]
[1761815736909,0.44395684,110520.0,110510.0,0.37103]
[1761815737099,0.44395684,110520.0,110510.0,1.87103]
[1761815737802,0.60630674,110520.0,110510.0,1.87103]
[1761815738413,0.61924674,110520.0,110510.0,1.87103]
[1761815738905,0.61924674,110520.0,110510.0,1.55819]
[1761815739108,0.61924674,110520.0,110510.0,1.5443]
[1761815742216,0.64345348,110520.0,110510.0,1.5443]
[1761815742514,0.61924674,110520.0,110510.0,1.5443]
[1761815743215,0.64345348,110520.0,110510.0,1.5443]
[1761815743418,0.8055663,110520.0,110510.0,1.5443]
[1761815745121,0.8055663,110520.0,110510.0,1.55819]
[1761815747522,0.6061882,110520.0,110510.0,1.72042136]
[1761815747913,0.6061882,110520.0,110510.0,1.55819]
[1761815748115,0.6061882,110520.0,110510.0,1.72042136]
[1761815748824,0.63039494,110520.0,110510.0,1.72042136]
[1761815749523,0.63039494,110520.0,110510.0,1.55819]
[1761815749723,0.7926263,110520.0,110510.0,1.55819]
[1761815749922,0.8064563,110520.0,110510.0,1.55819]
[1761815751911,0.64422494,110520.0,110510.0,1.55819]
[1761815752116,0.63039494,110520.0,110510.0,1.55819]
[1761815753331,0.94323494,110520.0,110510.0,1.72042136]
[1761815753529,0.94323494,110520.0,110510.0,1.55819]
[1761815753826,0.63039494,110520.0,110510.0,1.72042136]
[1761815754214,0.26959494,110520.0,110510.0,1.72042136]
[1761815754423,0.63039494,110520.0,110510.0,1.72042136]
[1761815754927,0.26959494,110520.0,110510.0,1.72042136]
[1761815755136,0.63039494,110520.0,110510.0,1.72042136]
[1761815756626,0.26959494,110520.0,110510.0,1.81090666]
[1761815757226,0.21010494,110520.0,110510.0,1.81090666]
[1761815757428,0.04787358,110520.0,110510.0,2.12374666]
[1761815758226,0.09135358,110520.0,110510.0,1.9615153]
[1761815758528,0.07009358,110520.0,110510.0,2.12374666]
[1761815759823,0.23232494,110520.0,110510.0,2.12374666]
[1761815760432,0.10701358,110520.0,110510.0,1.9615153]
[1761815760624,0.26924494,110520.0,110510.0,2.12374666]
[1761815760824,0.24798494,110520.0,110510.0,2.12374666]
[1761815761328,0.2237782,110520.0,110510.0,2.12374666]
[1761815761531,0.03932684,110520.0,110510.0,2.12374666]
[1761815762329,0.03932684,110520.0,110510.0,1.9615153]
[1761815762521,0.2475781,110520.0,110510.0,1.87103]
[1761815762716,0.26924494,110520.0,110510.0,1.87103]
[1761815762925,0.8140934,110520.0,110510.0,1.5443]
[1761815763123,1.1268934,110520.0,110510.0,1.5443]
[1761815763825,0.8140934,110520.0,110510.0,1.5443]
[1761815764026,1.1268934,110520.0,110510.0,1.5443]
[1761815764623,0.8140934,110520.0,110510.0,1.5443]
[1761815765022,1.1268934,110520.0,110510.0,1.5443]
[1761815765324,0.80243068,110520.0,110510.0,1.5443]
[1761815765630,1.1268934,110520.0,110510.0,1.5443]
[1761815769130,1.1268934,110520.0,110510.0,1.52275]
[1761815770135,0.8140934,110520.0,110510.0,1.52275]
[1761815770435,0.8140934,110520.0,110510.0,1.53663]
[1761815770635,1.1268934,110520.0,110510.0,1.53663]
[1761815771229,0.78877068,110520.0,110510.0,1.53663]
[1761815771435,0.80260068,110520.0,110510.0,1.53663]
[1761815771632,1.1270634,110520.0,110510.0,1.53663]
[1761815772650,1.11900738,110520.0,110510.0,1.53663]
[1761815774631,0.78071466,110520.0,110510.0,1.53663]
[1761815774832,1.10517738,110520.0,110510.0,1.53663]
[1761815775832,1.10517738,110520.0,110510.0,1.61083]
[1761815776032,1.05920272,110520.0,110510.0,1.61083]
[1761815776229,1.10527394,110520.0,110510.0,1.61083]
[1761815776739,0.94304258,110520.0,110510.0,1.61083]
[1761815776934,0.93240626,110520.0,110510.0,1.61083]
[1761815777144,0.91873626,110520.0,110510.0,1.61083]
[1761815777337,0.93240626,110520.0,110510.0,1.59695]
[1761815777529,1.11894394,110520.0,110510.0,1.59695]
[1761815778033,0.80614394,110520.0,110510.0,1.59695]
[1761815778233,1.11894394,110520.0,110510.0,1.59695]
[1761815778436,0.80614394,110520.0,110510.0,1.59695]
[1761815778742,0.79448122,110520.0,110510.0,1.59695]
[1761815778938,0.80614394,110520.0,110510.0,1.59695]
[1761815779444,1.11894394,110520.0,110510.0,1.61026]
[1761815779835,0.79448122,110520.0,110510.0,1.61026]
[1761815780034,1.11894394,110520.0,110510.0,1.61026]
[1761815780539,1.11894394,110520.0,110510.0,1.59695]
[1761815781134,0.80614394,110520.0,110510.0,1.59695]
[1761815781641,1.11894394,110520.0,110510.0,1.59695]
[1761815782145,0.81539167,110520.0,110510.0,1.59695]
[1761815782642,1.12819167,110520.0,110510.0,1.59695]
[1761815783238,0.81539167,110520.0,110510.0,1.59695]
[1761815783444,1.11894394,110520.0,110510.0,1.59695]
[1761815784146,0.80614394,110520.0,110510.0,1.59695]
[1761815784443,1.11894394,110520.0,110510.0,1.59695]
[1761815784640,0.48168122,110520.0,110510.0,1.59695]
[1761815784839,1.11894394,110520.0,110510.0,1.59695]
[1761815785045,1.1279676,110520.0,110510.0,1.59695]
[1761815785545,0.49070488,110520.0,110510.0,1.59695]
[1761815785744,0.8151676,110520.0,110510.0,1.59695]
[1761815786446,1.11894394,110520.0,110510.0,1.59695]
[1761815789944,0.9683753,110520.0,110510.0,1.59695]
[1761815790250,1.8311753,110520.0,110510.0,0.0752]
[1761815790548,1.8338953,110520.0,110510.0,0.0752]
[1761815791050,1.66894394,110520.0,110510.0,0.0752]
[1761815791252,1.8311753,110520.0,110510.0,0.0752]
[1761815792252,1.83923282,110520.0,110510.0,0.09773]
[1761815792545,1.83923282,110520.0,110510.0,0.0752]
[1761815793654,1.83923282,110520.0,110510.0,0.09773]
[1761815793854,1.83923282,110520.0,110510.0,0.0752]
[1761815794152,1.86353374,110520.0,110510.0,0.0752]
[1761815794554,1.86625374,110520.0,110510.0,0.0752]
[1761815794755,1.84195282,110520.0,110510.0,0.0752]
[1761815795157,1.67700146,110520.0,110510.0,0.09773]
[1761815795855,1.83923282,110520.0,110510.0,0.09773]
[1761815796055,1.67700146,110520.0,110510.0,0.11879]
[1761815796257,1.70129905,110520.0,110510.0,0.11879]
[1761815796757,1.70129905,110520.0,110510.0,0.09773]
[1761815796954,1.70129905,110520.0,110510.0,0.11879]
[1761815798457,1.70129905,110520.0,110510.0,0.0752]
[1761815798656,1.70129905,110520.0,110510.0,0.09773]
[1761815799055,1.66893521,110520.0,110510.0,0.11879]
[1761815799653,1.16613521,110520.0,110510.0,0.11879]
[1761815799858,1.11893521,110520.0,110510.0,0.1321]
[1761815800658,1.11893521,110520.0,110510.0,0.1409583]
[1761815801254,1.11893521,110520.0,110510.0,0.1321]
[1761815801557,1.10526521,110520.0,110510.0,0.1321]
[1761815802657,1.11808521,110520.0,110510.0,0.1321]
[1761815803054,1.09378762,110520.0,110510.0,0.1321]
[1761815804251,1.11808521,110520.0,110510.0,0.1321]
[1761815804858,0.80528521,110520.0,110510.0,0.09773]
[1761815805157,1.11804521,110520.0,110510.0,0.09773]
[1761815805357,1.13808471,110520.0,110510.0,0.11879]
[1761815805554,1.13808471,110520.0,110510.0,0.09773]
[1761815805757,1.68808471,110520.0,110510.0,0.11879]
[1761815806457,1.68808471,110520.0,110510.0,0.0752]
[1761815807258,1.67242471,110520.0,110510.0,0.09773]
[1761815807558,1.68808471,110520.0,110510.0,0.0752]
[1761815809362,1.68808471,110520.0,110510.0,0.09773]
[1761815812460,1.69615096,110520.0,110510.0,0.09773]
[1761815813266,1.69615096,110520.0,110510.0,0.09699]
[1761815813460,1.69615096,110520.0,110510.0,0.0752]
[1761815813856,1.69615096,110520.0,110510.0,0.09699]
[1761815814161,1.69615096,110520.0,110510.0,0.0752]
[1761815819170,1.69887096,110520.0,110510.0,0.0752]
[1761815820068,1.69615096,110520.0,110510.0,0.0752]
[1761815820268,1.69887096,110520.0,110510.0,0.0752]
[1761815821575,1.66650712,110520.0,110510.0,0.0752]
[1761815822070,1.66378712,110520.0,110510.0,0.0752]
[1761815822276,1.71231822,110520.0,110510.0,0.0752]
[1761815822787,1.71231822,110520.0,110470.0,0.57883201]
[1761815822788,0.04568,110480.0,110470.0,0.057]
[1761815822976,1.27971379,110480.0,110470.0,0.057]
[1761815823167,1.27721601,110480.0,110470.0,1.557]
[1761815824171,1.27821601,110480.0,110470.0,1.561]
[1761815824478,1.27821601,110480.0,110470.0,1.563]
[1761815824677,1.27821601,110480.0,110470.0,1.54969]
[1761815825576,1.27821601,110480.0,110470.0,1.5628]
[1761815827875,1.1159649,110480.0,110470.0,1.54969]
[1761815828176,1.27821601,110480.0,110470.0,1.54969]
[1761815828378,1.29387601,110480.0,110470.0,1.54969]
[1761815829073,1.87387601,110480.0,110470.0,0.006]
[1761815829272,0.05888,110470.0,110460.0,0.10011]
[1761815829482,1.15935601,110470.0,110460.0,0.12201]
[1761815830180,0.90935601,110470.0,110460.0,0.12201]
[1761815830584,1.16935601,110470.0,110460.0,0.12201]
[1761815830875,1.16835601,110470.0,110460.0,0.12201]
[1761815831473,1.16935601,110470.0,110460.0,0.12301]
[1761815831679,0.98935601,110470.0,110460.0,0.12401]
[1761815831982,0.90325601,110470.0,110460.0,0.13435]
[1761815834282,0.7410049,110470.0,110460.0,0.13435]
[1761815835076,0.90325601,110470.0,110460.0,0.13435]
[1761815835381,0.90329601,110470.0,110460.0,0.13435]
[1761815836388,0.99381401,110470.0,110460.0,0.13435]
[1761815836583,0.8315629,110470.0,110460.0,0.13435]
[1761815836978,0.8315629,110470.0,110460.0,0.73435]
[1761815839983,0.99381401,110470.0,110460.0,0.73435]
[1761815841590,1.00762401,110470.0,110460.0,0.73435]
[1761815842387,0.69482401,110470.0,110460.0,0.73435]
[1761815842579,1.00762401,110470.0,110460.0,0.73435]
[1761815843486,0.99381401,110470.0,110460.0,0.73435]
[1761815844886,0.8315629,110470.0,110460.0,0.73435]
[1761815845491,0.8315229,110470.0,110460.0,0.73435]
[1761815845684,0.99377401,110470.0,110460.0,0.73435]
[1761815845989,0.8315229,110470.0,110460.0,0.73435]
[1761815846286,0.5344229,110470.0,110460.0,0.73435]
[1761815846585,1.00943401,110470.0,110460.0,0.73435]
[1761815846787,0.8471829,110470.0,110460.0,0.73435]
[1761815846987,1.00943401,110470.0,110460.0,0.73435]
[1761815847582,1.02324401,110470.0,110460.0,0.73435]
[1761815849990,1.02324401,110470.0,110460.0,0.66012]
[1761815851192,1.04750669,110470.0,110460.0,0.66012]
[1761815852285,1.04750669,110470.0,110460.0,0.04978]
[1761815854895,1.04750669,110470.0,110460.0,0.02788]
[1761815855589,1.04750669,110470.0,110460.0,0.00609]
[1761815855791,1.04750669,110470.0,110460.0,0.05077]
[1761815857095,1.04750669,110470.0,110460.0,0.00609]
[1761815857296,1.08559425,110470.0,110460.0,0.00609]
[1761815857599,1.08559425,110470.0,110460.0,0.02899]
[1761815857793,1.08559425,110470.0,110460.0,0.05077]
[1761815860300,1.05559425,110470.0,110460.0,0.05077]
[1761815861191,1.05559425,110470.0,110460.0,0.00609]
[1761815861594,1.05559425,110470.0,110460.0,0.02899]
[1761815862695,1.05559425,110470.0,110460.0,0.05025]
[1761815864998,1.05559425,110470.0,110460.0,0.00609]
[1761815865690,1.05559425,110470.0,110460.0,0.02884]
[1761815866803,0.74283425,110470.0,110460.0,0.02884]
[1761815866989,1.05559425,110470.0,110460.0,0.02884]
[1761815867302,1.2181208,110470.0,110460.0,0.02884]
[1761815867902,1.2181208,110470.0,110460.0,0.0501]
[1761815868298,1.2181208,110470.0,110460.0,0.02884]
[1761815869006,1.2181208,110470.0,110460.0,0.05052]
[1761815869399,1.05573197,110470.0,110460.0,0.05052]
[1761815869604,1.2181208,110470.0,110460.0,0.05052]
[1761815869904,1.05573197,110470.0,110460.0,0.05052]
[1761815871205,0.74297197,110470.0,110460.0,0.05052]
[1761815871407,1.05573197,110470.0,110460.0,0.06429]
[1761815872009,1.03382603,110470.0,110460.0,0.22667883]
[1761815872210,1.03382603,110470.0,110460.0,0.06429]
[1761815873205,1.04644603,110470.0,110460.0,0.06429]
[1761815874712,1.04644603,110470.0,110460.0,0.05052]
[1761815877323,0.8840572,110470.0,110460.0,0.05052]
[1761815877615,1.04644603,110470.0,110460.0,0.05052]
[1761815877808,1.04644603,110470.0,110460.0,0.22667883]
[1761815879016,1.04644603,110470.0,110460.0,0.06429]
[1761815879213,0.73368603,110470.0,110460.0,0.22667883]
[1761815879413,1.04640603,110470.0,110460.0,0.22667883]
[1761815881712,1.04640603,110470.0,110460.0,0.05052]
[1761815882318,1.04640603,110470.0,110460.0,0.00609]
[1761815882517,1.04640603,110470.0,110460.0,0.02754]
[1761815882827,1.04640603,110470.0,110460.0,0.05043]
[1761815883417,1.04640603,110470.0,110460.0,0.02754]
[1761815883614,1.2168908,110470.0,110460.0,0.00609]
[1761815884721,1.05450197,110470.0,110460.0,0.00609]
[1761815885814,1.2168908,110470.0,110460.0,0.00609]
[1761815887123,1.7368908,110470.0,110460.0,0.00609]
[1761815887325,1.7396108,110470.0,110460.0,0.00609]
[1761815887623,0.05746,110460.0,110450.0,0.07423]
[1761815887920,0.80472088,110460.0,110450.0,0.07423]
[1761815888722,1.00710971,110460.0,110450.0,0.07423]
[1761815888919,1.41572088,110460.0,110450.0,0.07423]
[1761815889325,1.44807112,110460.0,110450.0,0.07423]
[1761815889826,0.05746,110450.0,110440.0,1.5]
[1761815890026,0.93075373,110450.0,110440.0,1.5]
[1761815890329,1.15627745,110450.0,110440.0,1.5]
[1761815890522,0.9696303,110450.0,110440.0,1.5]
[1761815890922,0.9706303,110450.0,110440.0,1.5]
[1761815892828,1.13301913,110450.0,110440.0,1.5]
[1761815893030,1.13301913,110450.0,110440.0,1.57424]
[1761815894028,0.80824147,110450.0,110440.0,1.57424]
[1761815894231,1.34824147,110450.0,110440.0,1.57424]
[1761815894533,1.16824147,110450.0,110440.0,1.57424]
[1761815894728,1.49301913,110450.0,110440.0,1.57424]
[1761815895728,1.62301913,110450.0,110440.0,1.57424]
[1761815896916,1.62301913,110450.0,110400.0,0.12351138]
[1761815896917,0.04635,110410.0,110400.0,0.12351138]
[1761815897120,0.53711883,110410.0,110400.0,0.12351138]
[1761815897426,0.52145883,110410.0,110400.0,0.05852]
[1761815897916,0.35907,110410.0,110400.0,0.22090883]
[1761815898122,0.20873883,110410.0,110400.0,0.22090883]
[1761815898318,0.52145883,110410.0,110400.0,0.22090883]
[1761815898520,0.52245883,110410.0,110400.0,0.22090883]
[1761815898716,0.52245883,110410.0,110400.0,0.22988377]
[1761815899531,0.52245883,110410.0,110400.0,0.06749494]
[1761815899722,0.52245883,110410.0,110400.0,0.22988377]
[1761815900130,0.52245883,110410.0,110400.0,0.05852]
[1761815900834,0.88325883,110410.0,110400.0,0.05852]
[1761815901627,0.91278883,110410.0,110400.0,0.04554]
[1761815902325,0.04573,110400.0,110390.0,0.07766601]
[1761815902527,0.75390766,110400.0,110390.0,0.06382601]
[1761815902834,1.21390766,110400.0,110390.0,0.06382601]
[1761815903930,1.21390766,110400.0,110390.0,0.01878601]
[1761815903931,1.37629649,110400.0,110390.0,0.01878601]
[1761815904234,1.37901649,110400.0,110390.0,0.01878601]
[1761815904829,1.38791928,110400.0,110390.0,0.01878601]
[1761815905128,0.88913,110400.0,110390.0,0.06382601]
[1761815905339,1.21390766,110400.0,110390.0,0.01878601]
[1761815905527,1.21490766,110400.0,110390.0,0.01878601]
[1761815906534,1.37729649,110400.0,110390.0,0.01878601]
[1761815906730,1.38001649,110400.0,110390.0,0.01878601]
[1761815906929,1.38201649,110400.0,110390.0,0.01878601]
[1761815907729,2.08195718,110400.0,110390.0,0.01878601]
[1761815907936,1.48195718,110400.0,110390.0,0.01878601]
[1761815908127,1.48195718,110400.0,110390.0,0.00010601]
[1761815908537,1.47923718,110400.0,110390.0,0.00010601]
[1761815908933,1.79479718,110400.0,110390.0,0.00010601]
[1761815909632,1.79207718,110400.0,110390.0,0.00010601]
[1761815909832,0.06815,110390.0,110380.0,1.4999]
[1761815910025,1.28100766,110390.0,110380.0,1.4999]
[1761815910226,1.44611649,110390.0,110380.0,1.4999]
[1761815910431,1.28372766,110390.0,110380.0,1.4999]
[1761815910632,0.04573,110370.0,110360.0,0.05847]
[1761815910934,0.89752484,110370.0,110360.0,0.05847]
[1761815911139,0.91942939,110370.0,110360.0,1.55847]
[1761815911534,0.89752484,110370.0,110360.0,1.55847]
[1761815912135,0.98812494,110370.0,110360.0,1.55847]
[1761815912441,1.01003308,110370.0,110360.0,1.55847]
[1761815913439,0.98912494,110370.0,110360.0,1.55847]
[1761815913940,0.99012494,110370.0,110360.0,1.55847]
[1761815914642,0.99312494,110370.0,110360.0,1.55847]
[1761815915138,0.50223611,110370.0,110360.0,1.72085883]
[1761815915441,0.79191611,110370.0,110360.0,1.88324766]
[1761815915642,0.79191611,110370.0,110360.0,1.72085883]
[1761815915942,0.95430494,110370.0,110360.0,1.72085883]
[1761815916245,0.79195611,110370.0,110360.0,1.72085883]
[1761815916539,0.81515611,110370.0,110360.0,1.55847]
[1761815916744,0.97754494,110370.0,110360.0,1.72085883]
[1761815917337,0.40862611,110370.0,110360.0,1.55847]
[1761815917537,0.09570611,110370.0,110360.0,1.97657596]
[1761815917942,0.09570611,110370.0,110360.0,2.33737596]
[1761815918135,0.00510601,110370.0,110360.0,2.45737596]
[1761815918335,0.09570611,110370.0,110360.0,2.33737596]
[1761815919031,0.00510601,110370.0,110360.0,2.44737596]
[1761815919339,0.09570611,110370.0,110360.0,2.58737596]
[1761815919542,0.00510601,110370.0,110360.0,2.58737596]
[1761815919937,0.97238773,110390.0,110380.0,0.05847]
[1761815920240,0.99419607,110390.0,110380.0,0.05847]
[1761815920442,0.99419607,110390.0,110380.0,0.22085883]
[1761815921149,1.00519607,110390.0,110380.0,0.22085883]
[1761815921446,1.00519607,110390.0,110380.0,0.05847]
[1761815922140,0.1363219,110380.0,110370.0,0.03595]
[1761815922341,0.0906001,110370.0,110360.0,0.01343]
[1761815922546,0.98825893,110370.0,110360.0,0.05847]
[1761815922745,0.98825893,110370.0,110360.0,1.55847]
[1761815923344,0.98725893,110370.0,110360.0,1.55847]
[1761815923948,0.98925893,110370.0,110360.0,1.55947]
[1761815924338,0.99025893,110370.0,110360.0,1.55947]
[1761815924746,1.18832879,110370.0,110360.0,0.001]
[1761815925248,0.1432783,110360.0,110350.0,0.05995592]
[1761815925544,1.39373221,110360.0,110350.0,0.05995592]
[1761815925738,0.0906576,110300.0,110280.0,0.3608]
[1761815925938,0.31433732,110290.0,110280.0,0.05847]
[1761815926134,0.58447152,110290.0,110280.0,0.05847]
[1761815926340,0.65958463,110290.0,110280.0,0.05847]
[1761815926647,0.56791883,110290.0,110280.0,0.05847]
[1761815926850,0.40553,110290.0,110280.0,0.05847]
[1761815927043,0.6586783,110290.0,110280.0,0.05847]
[1761815927451,0.86111959,110290.0,110280.0,0.04804]
[1761815927650,0.86111959,110290.0,110280.0,0.02552]
[1761815928144,0.85617959,110290.0,110280.0,0.04804]
[1761815928344,0.86211959,110290.0,110280.0,0.01611756]
[1761815928546,0.96206028,110290.0,110280.0,0.01611756]
[1761815928946,0.86211959,110290.0,110280.0,0.01611756]
[1761815929147,0.86211959,110290.0,110280.0,0.02623]
[1761815929543,0.86211959,110290.0,110280.0,0.01609797]
[1761815929946,0.51878216,110290.0,110280.0,0.01309797]
[1761815930247,0.86111959,110290.0,110280.0,0.01309797]
[1761815930647,0.86111959,110290.0,110280.0,0.07180797]
[1761815930648,0.85517959,110290.0,110280.0,0.07180797]
[1761815930850,0.86111959,110290.0,110280.0,0.0458]
[1761815931352,0.85517959,110290.0,110280.0,0.07179162]
[1761815931645,0.42317636,110290.0,110280.0,0.05871]
[1761815931851,0.51384216,110290.0,110280.0,0.05871]
[1761815932050,0.42317636,110290.0,110280.0,0.05871]
[1761815932243,0.51384216,110290.0,110280.0,0.05871]
[1761815932645,0.06237636,110290.0,110280.0,0.05871]
[1761815932947,0.04682367,110290.0,110280.0,0.05871]
[1761815933143,0.13748947,110290.0,110280.0,0.05871]
[1761815935142,0.00209367,110290.0,110280.0,0.37523]
[1761815935543,0.00209367,110290.0,110280.0,0.73603]
[1761815936050,0.09275947,110290.0,110280.0,0.73603]
[1761815936253,0.00209367,110290.0,110280.0,0.73603]
[1761815936653,0.00209367,110290.0,110280.0,0.73599]
[1761815936854,0.00209367,110290.0,110280.0,1.16800143]
[1761815937160,0.00209367,110290.0,110280.0,0.829384]
[1761815937451,0.00209367,110290.0,110280.0,1.16800143]
[1761815937654,0.00209367,110290.0,110280.0,1.17072143]
[1761815937956,0.00209367,110290.0,110280.0,0.85424143]
[1761815938151,0.00209367,110290.0,110280.0,1.77072143]
[1761815938555,0.00209367,110290.0,110280.0,1.76800143]
[1761815938856,0.00209367,110290.0,110280.0,1.77072143]